Cogmind - Beta 13 @@@ ROGUE MODE // 2024.05.20 @ 16:05:27 Player: Lunace Result: Destroyed by X-57 Shotgunner with Shotgun Performance ------------- Evolutions (2) 1000 Regions Visited (5) 1000 Robots Destroyed (85) 425 Value Destroyed (2279) 2279 Prototype IDs (3) 60 Alien Tech Used (0) 0 Bonus (175) 175 TOTAL SCORE: 4939 Bonus ------- High Alert Combat Kills 175 Cogmind --------- Core Integrity 0/550 Matter 103/300 Energy 38/125 System Corruption 0% Temperature Cool (0) Movement Rolling (155) Ox5 Location -8/Materials Parts ------- > --- POWER (1) -------- Light Ion Engine > --- PROPULSION (2) --- Wheel > --- UTILITY (6) ------ High-capacity Storage Unit Signal Interpreter Light Armor Plating > --- WEAPON (2) ------- Heavy Ion Cannon Grenade Launcher > --- INVENTORY (20) --- Component Analysis Suite Pulse Rifle Pulse Rifle Heavy Ion Cannon Heavy Ion Cannon Heavy Ion Cannon Advanced Assault Cannon Peak State ------------ > --- POWER ------------ (None) > --- PROPULSION ------- Carbon-fiber Leg Carbon-fiber Leg > --- UTILITY ---------- Heat Sink Improved Heat Sink Improved Heat Sink High-capacity Storage Unit Signal Interpreter Improved Light Armor Plating > --- WEAPON ----------- Advanced Assault Cannon Advanced Assault Cannon > --- INVENTORY -------- Compact Wheel Component Analysis Suite Pulse Rifle Pulse Rifle Heavy Ion Cannon Heavy Ion Cannon Heavy Ion Cannon Heavy Ion Cannon Advanced Assault Cannon Advanced Assault Cannon Grenade Launcher [Rating: 29] Favorites ----------- Power Heavy Ion Engine Engine Heavy Ion Engine Propulsion Light Treads Treads Light Treads Leg Carbon-fiber Leg Wheel Compact Wheel Utility Improved Heat Sink Device Improved Heat Sink Storage Small Storage Unit Processor Signal Interpreter Protection Improved Light Armor Plating Weapon Pulse Rifle Energy Gun Pulse Rifle Energy Cannon Ion Cannon Ballistic Gun Light Assault Rifle Ballistic Cannon Advanced Assault Cannon Launcher Rocket Launcher Build | -11 -10 -10 -9 -9 -8 ------- Run | Yrd Mat Min Mat Min Mat Slots Evolved 4 | . . . 2 . 2 Power . | . . . . . . Propulsion . | . . . . . . Utility 4 | . . . 2 . 2 Weapon . | . . . . . . Parts Attached 63 | 7 4 5 18 . 29 Power 7 | 1 1 1 2 . 2 Engine 7 | 1 1 1 2 . 2 Core . | . . . . . . Reactor . | . . . . . . Propulsion 15 | 2 2 1 2 . 8 Treads 7 | 2 2 1 2 . . Leg 2 | . . . . . 2 Wheel 6 | . . . . . 6 Hover . | . . . . . . Flight . | . . . . . . Utility 17 | 2 . 1 4 . 10 Device 10 | 1 . 1 2 . 6 Storage 3 | 1 . . 1 . 1 Processor 2 | . . . 1 . 1 Hackware . | . . . . . . Protection 2 | . . . . . 2 Artifact . | . . . . . . Weapon 24 | 2 1 2 10 . 9 Energy Gun 9 | 1 . . 6 . 2 Energy Cannon 2 | . . 1 . . 1 Ballistic Gun 4 | 1 1 . . . 2 Ballistic Cannon 3 | . . . . . 3 Launcher 6 | . . 1 4 . 1 Special Weapon . | . . . . . . Impact Weapon . | . . . . . . Slashing Weapon . | . . . . . . Piercing Weapon . | . . . . . . Special Melee Weapon . | . . . . . . Unidentified Prototypes . | . . . . . . Parts Lost 21 | . . . 2 . 19 Power 2 | . . . . . 2 Propulsion 6 | . . . 1 . 5 Utility 7 | . . . . . 7 Weapon 6 | . . . 1 . 5 Highest Loss Streak 9 | . . . 1 . 9 To Critical Strikes . | . . . . . . Average Slot Usage (%) 93 | . 99 100 94 100 82 Engine 10 | . 14 14 11 11 4 Treads 18 | . 27 28 22 22 2 Leg 1 | . . . . . 5 Wheel 2 | . . . . . 10 Device 19 | . 14 14 21 22 21 Storage 11 | . 14 14 11 11 9 Processor 5 | . . . 5 11 10 Energy Gun 11 | . 14 7 15 11 8 Energy Cannon 3 | . . 13 1 . . Ballistic Gun 2 | . 14 . . . 1 Ballistic Cannon 1 | . . . . . 6 Launcher 4 | . . 7 5 11 1 Naked Turns . | . . . . . . Heaviest Build 59 | 12 14 21 37 37 59 Greatest Support 40 | 40 40 40 40 40 40 Greatest Overweight (x) 16 | . . . . . 16 Average Overweight (x) . | . . . . . . Largest Inventory Capacity 20 | 8 8 8 15 15 20 Average Capacity 11 | 7 8 8 8 15 19 Most Carried 16 | 4 6 8 8 7 16 Average Carried 7 | 3 5 6 7 7 9 Final Capacity 20 | 8 8 8 15 15 20 Final Carried 7 | 4 6 7 7 7 7 Class Distribution -------------------- 84% | Mutant 9% | Infiltrator-Mutant 5% | Scavenger-Mutant Dominant Class ---------------- Mutant | -10/Materials Mutant | -10/Mines Mutant | -9/Materials Mutant | -9/Mines Infiltrator-Mutant | -8/Materials Resources | -11 -10 -10 -9 -9 -8 ----------- Run | Yrd Mat Min Mat Min Mat Matter Collected 1318 | 274 47 85 334 10 568 Remotely . | . . . . . . Salvage Created 2228 | 61 161 175 994 . 837 Parts 145 | 6 9 10 80 . 40 Haulers Intercepted 4 | . . . . . 4 Recyclers Shooed 2 | . . . 2 . . Parts Field Recycled . | . . . . . . Retrieved Matter . | . . . . . . Parts Self-Destructed . | . . . . . . Prevented . | . . . . . . Kills | -11 -10 -10 -9 -9 -8 ------- Run | Yrd Mat Min Mat Min Mat Combat Hostiles Destroyed 60 | . 5 2 34 . 19 Guns 29 | . 5 1 14 . 9 Cannons 12 | . . 1 1 . 10 AOE 19 | . . . 19 . . Classes Destroyed 13 | 1 2 2 7 . 1 Worker 5 | . . 1 4 . . Builder 1 | . . . 1 . . Tunneler 4 | 3 . 1 . . . Hauler 4 | . . . . . 4 Recycler 4 | . . 1 2 . 1 Mechanic 2 | . . . 2 . . Operator 2 | . . . 1 . 1 Watcher 3 | . . . 3 . . Swarmer 13 | . 2 2 9 . . Grunt 35 | . 3 . 19 . 13 Brawler 1 | . . . 1 . . Duelist 2 | . . . 1 . 1 Sentry 9 | . . . 4 . 5 Best Kill Streak 13 | 3 2 3 13 . 6 Combat Bots Only 9 | . 2 2 9 . 5 Max Kills in Single Turn 4 | 1 1 1 4 . 2 Gunslinging . | . . . . . . Exploded 3 | . . . 3 . . Melee . | . . . . . . Uniques/NPCs Destroyed . | . . . . . . Combat | -11 -10 -10 -9 -9 -8 -------- Run | Yrd Mat Min Mat Min Mat Hostile Shots Fired 368 | . 40 30 81 . 217 Missed 107 | . 12 4 26 . 65 Damage Taken 3693 | . 275 211 854 . 2353 Core 699 | . 42 30 72 . 555 Absorbed by Shields . | . . . . . . Regen/Repaired (Parts) 18 | . . . 18 . . Core Remaining (%) 84 | 100 . 71 . 82 . Volleys Fired 208 | 4 42 13 59 . 90 Largest 2 | 2 2 2 2 . 2 Hottest 126 | 70 70 110 126 . 126 Shots Fired 371 | 8 83 20 103 . 157 Gun 257 | 8 83 7 83 . 76 Cannon 98 | . . 13 4 . 81 Launcher 16 | . . . 16 . . Special . | . . . . . . Kinetic 146 | 4 42 . . . 100 Thermal 209 | 4 41 20 87 . 57 Explosive 16 | . . . 16 . . Electromagnetic . | . . . . . . Robot Hit Streak 17 | 6 17 6 17 . 16 Robot Miss Streak 9 | . 3 9 3 . 3 Penetration Max . | . . . . . . Secondary Targets 2 | . 1 . 1 . . Max Gunslinging Chain 1 | . 1 . 1 . . Shots Hit Robots 259 | 6 52 8 73 . 120 Core Hits 134 | 4 11 5 68 . 46 Critical Kills . | . . . . . . Critical Parts Destroyed . | . . . . . . Critical Strikes 12 | . 5 . . . 7 Burn 8 | . 5 . . . 3 Blast 4 | . . . . . 4 Melee Attacks . | . . . . . . Impact . | . . . . . . Slashing . | . . . . . . Piercing . | . . . . . . Sneak Attacks . | . . . . . . Combat Hostiles . | . . . . . . Follow-up Attacks . | . . . . . . Damage Inflicted 6596 | 73 522 155 3177 . 2669 Guns 2769 | 73 522 37 1070 . 1067 Cannons 1812 | . . 118 92 . 1602 Explosions 2015 | . . . 2015 . . Melee . | . . . . . . Ramming . | . . . . . . Kinetic 2105 | 24 207 . . . 1874 Thermal 2476 | 49 315 155 1162 . 795 Explosive 2015 | . . . 2015 . . Electromagnetic . | . . . . . . Impact . | . . . . . . Slashing . | . . . . . . Piercing . | . . . . . . Highest Corruption . | . . . . . . Average Corruption . | . . . . . . Corruption Purged . | . . . . . . Corruption Blocked . | . . . . . . Overload Shots . | . . . . . . Overflow Damage 55 | . . . 24 . 31 Projectiles . | . . . . . . Explosions 55 | . . . 24 . 31 Melee . | . . . . . . Knockbacks 11 | . . . . . 11 Impact . | . . . . . . Kinetic 11 | . . . . . 11 Secondary . | . . . . . . Self-Inflicted Damage 310 | . . . 215 . 95 Shots 9 | . . . 8 . 1 Rammed . | . . . . . . Targets Rammed . | . . . . . . Kicked . | . . . . . . Crushed . | . . . . . . Highest Temperature 243 | 50 226 42 168 . 243 Average Temperature 64 | 26 65 22 51 . 90 Received Heat Transfer 1245 | . 102 . 234 . 909 Effects 1 | . . . . . 1 Energy Bleed 1 | . . . . . 1 Siege Activations . | . . . . . . Robots Corrupted . | . . . . . . Combat Hostiles . | . . . . . . Parts Fried . | . . . . . . Impact Corruptions . | . . . . . . Robots Melted . | . . . . . . Combat Hostiles . | . . . . . . Parts Melted 7 | . 2 . 1 . 4 Heat Transferred 6068 | 148 1295 296 2479 . 1850 Parts Sabotaged . | . . . . . . Parts Stolen . | . . . . . . Parts Stripped . | . . . . . . Power Chain Reactions . | . . . . . . Alert | -11 -10 -10 -9 -9 -8 ------- Run | Yrd Mat Min Mat Min Mat Peak Influence 801 | 15 178 72 801 312 441 Initial 312 | . 9 16 3 312 121 Average 175 | 5 84 30 261 312 183 Maximum Alert Level 3 | . . . 3 1 2 Low Security (%) 62 | 100 100 100 46 . 53 Level 1 26 | . . . 29 100 41 Level 2 7 | . . . 17 . 4 Level 3 2 | . . . 6 . . Level 4 . | . . . . . . Level 5 . | . . . . . . High Security . | . . . . . . Max Security . | . . . . . . Squads Dispatched 14 | . 2 1 7 . 4 Investigation 6 | . 1 1 3 . 1 Extermination . | . . . . . . Reinforcement 7 | . 1 . 3 . 3 Assault 1 | . . . 1 . . Garrison . | . . . . . . Intercept . | . . . . . . Searches Triggered . | . . . . . . Construction Impeded . | . . . . . . Haulers Reinforced . | . . . . . . Active Scanning Responses . | . . . . . . Cargo Convoy Interrupts . | . . . . . . Stealth | -11 -10 -10 -9 -9 -8 --------- Run | Yrd Mat Min Mat Min Mat Distress Signals 7 | . 2 . 1 . 4 Communications Jammed . | . . . . . . Distress Signals . | . . . . . . Times Spotted 97 | . 16 3 45 . 33 Peak Tracking Total 6 | . 5 3 5 . 6 Tactical Retreats 6 | . . . 1 . 5 Traps | -11 -10 -10 -9 -9 -8 ------- Run | Yrd Mat Min Mat Min Mat Traps Triggered 5 | . 1 . 2 . 2 Indirectly . | . . . . . . Trap Hack Attempts . | . . . . . . Triggered . | . . . . . . Disarmed . | . . . . . . Reprogrammed . | . . . . . . Reused . | . . . . . . Traps Extracted . | . . . . . . Installed . | . . . . . . Triggered . | . . . . . . Machines | -11 -10 -10 -9 -9 -8 ---------- Run | Yrd Mat Min Mat Min Mat Machines Disabled 5 | . . . 3 . 2 Max in Single Turn 2 | . . . 1 . 2 Machines Repaired . | . . . . . . Machines Dismantled . | . . . . . . Machines Sabotaged . | . . . . . . Overloaded Fab Kills . | . . . . . . Hacking | -11 -10 -10 -9 -9 -8 --------- Run | Yrd Mat Min Mat Min Mat Machines Accessed 14 | . 3 1 6 . 4 Terminals 11 | . 2 . 5 . 4 Fabricators . | . . . . . . Repair Stations 1 | . . . 1 . . Recycling Units 1 | . 1 . . . . Scanalyzers . | . . . . . . Garrison Access . | . . . . . . Total Hacks 54 | . 14 1 18 . 21 Successful 24 | . 8 1 6 . 9 Failed 30 | . 6 . 12 . 12 Catastrophic 6 | . . . 3 . 3 Database Lockouts . | . . . . . . Manual 39 | . 11 . 16 . 12 Terminals 48 | . 11 . 16 . 21 Fabricators . | . . . . . . Repair Stations 2 | . . . 2 . . Recycling Units 3 | . 3 . . . . Scanalyzers . | . . . . . . Garrison Access . | . . . . . . Terminal Hacks 9 | . 2 1 . . 6 Prototype ID Bank 2 | . 2 . . . . Open Door 1 | . . 1 . . . Unreport Threat 4 | . . . . . 4 Locate Traps 1 | . . . . . 1 Recall Reinforcements 1 | . . . . . 1 Fabricator Hacks . | . . . . . . Repair Station Hacks 2 | . . . 2 . . Scan Component 1 | . . . 1 . . Repair 1 | . . . 1 . . Recycling Unit Hacks 1 | . 1 . . . . Report Inventory 1 | . 1 . . . . Scanalyzer . | . . . . . . Garrison Access Hacks . | . . . . . . Unauthorized Hacks 12 | . 5 . 4 . 3 Terminals 10 | . 3 . 4 . 3 Assimilate 1 | . 1 . . . . Botnet 8 | . 1 . 4 . 3 Operators 1 | . 1 . . . . Fabricators . | . . . . . . Repair Stations . | . . . . . . Recycling Units 2 | . 2 . . . . Monitor 1 | . 1 . . . . Recyclers 1 | . 1 . . . . Scanalyzers . | . . . . . . Garrison Access . | . . . . . . Data Cores Recovered 1 | . . . . . 1 Used . | . . . . . . Hacking Detections 11 | . 2 . 5 . 4 Full Trace Events 3 | . 1 . 1 . 1 Feedback Events . | . . . . . . Feedback Blocked . | . . . . . . Robot Schematics Acquired . | . . . . . . Robots Built . | . . . . . . Authchips . | . . . . . . Time . | . . . . . . Total Robot Build Rating . | . . . . . . Part Schematics Acquired . | . . . . . . Parts Built . | . . . . . . Authchips . | . . . . . . Time . | . . . . . . Total Part Build Rating . | . . . . . . Parts Repaired 1 | . . . 1 . . Time 26 | . . . 26 . . Parts Recycled . | . . . . . . Recycled Matter . | . . . . . . Retrieved Matter . | . . . . . . Retrieved Components . | . . . . . . Parts Scanalyzed . | . . . . . . Part Schematics Acquired . | . . . . . . Parts Damaged . | . . . . . . Bothacking | -11 -10 -10 -9 -9 -8 ------------ Run | Yrd Mat Min Mat Min Mat Used RIF Installer . | . . . . . . Robots Hacked . | . . . . . . Non-combat . | . . . . . . Combat . | . . . . . . Robot Hacks Applied . | . . . . . . Relay Couplers Released . | . . . . . . Fabnet Peak Effective % . | . . . . . . Robots Rewired . | . . . . . . Allies Hacked . | . . . . . . Hacks Repelled . | . . . . . . Allies | -11 -10 -10 -9 -9 -8 -------- Run | Yrd Mat Min Mat Min Mat Total Allies . | . . . . . . Largest Group . | . . . . . . Highest-Rated Group . | . . . . . . Highest-Rated Ally . | . . . . . . Total Orders . | . . . . . . Ally Attacks . | . . . . . . Total Damage . | . . . . . . Kills . | . . . . . . Allies Corrupted . | . . . . . . Allies Melted . | . . . . . . Intel | -11 -10 -10 -9 -9 -8 ------- Run | Yrd Mat Min Mat Min Mat Robot Analysis Total . | . . . . . . Derelict Logs Recovered 1 | . . 1 . . . Drone Launches . | . . . . . . Drone Recoveries . | . . . . . . Exploration | -11 -10 -10 -9 -9 -8 ------------- Run | Yrd Mat Min Mat Min Mat Turns Passed 3670 | 110 449 627 1364 195 925 Spaces Moved 1648 | 51 181 352 545 122 397 Core 7 | 5 . . . . 2 Treads 1307 | 46 181 352 545 122 61 Legs 86 | . . . . . 86 Wheels 248 | . . . . . 248 Hover . | . . . . . . Flight . | . . . . . . Fastest Speed 50 | 50 160 160 160 160 115 Average Speed 157 | 149 160 164 164 160 142 Slowest Speed 850 | 160 160 165 165 160 850 Overloaded Moves . | . . . . . . Propulsion Burnouts . | . . . . . . Robots Hopped . | . . . . . . Cave-ins Triggered . | . . . . . . Exploration Rate (%) 41 | 3 39 70 66 38 33 Regions Visited 5 Branch Regions 2 Pre-discovered Areas 1 | . . 1 . . . Known Exits Taken 2 | . . . 1 1 . Unknown Exits Taken 3 | 1 1 1 . . . Scrap Searched 3 | . . 1 . 2 . Spaces Dug . | . . . . . . Terrain Destroyed 146 | . . 1 101 . 44 Melee . | . . . . . . Projectile 20 | . . 1 . . 19 AOE 126 | . . . 101 . 25 Terrain Rammed . | . . . . . . Walls Destroyed . | . . . . . . Machines Disabled . | . . . . . . Actions | -11 -10 -10 -9 -9 -8 --------- Run | Yrd Mat Min Mat Min Mat Total 2346 | 74 265 379 905 122 601 Wait 368 | 9 35 3 272 1 48 Move 1643 | 50 180 351 544 121 397 Hop . | . . . . . . Pick Up 33 | 4 2 1 5 . 21 Fast Attach 30 | 7 2 3 4 . 14 Attach 17 | . . . 3 . 14 Detach 3 | . . 1 . . 2 Swap 16 | . 2 2 11 . 1 Drop 28 | . 2 5 7 . 14 Fire 208 | 4 42 13 59 . 90 Melee . | . . . . . . Ram . | . . . . . . Kick . | . . . . . . Crush . | . . . . . . Escape Stasis . | . . . . . . Rewire . | . . . . . . Trap . | . . . . . . Miscellaneous . | . . . . . . Route ------- -11/Scrapyard -10/Materials -10/Mines -9/Materials (discovered 3 exits: *Mat x2 / *Min) -9/Mines (discovered 2 exits: *Mat x2) -8/Materials History --------- Turn | Location | Event 25 | -11/Scrapyard | Discovered new exit (range 16) 111 | -11/Scrapyard | Entered Materials 302 | -10/Materials | Build established: Mutant 543 | -10/Materials | Discovered new exit (range 8) 560 | -10/Materials | Entered Mines 565 | -10/Mines | Met a Derelict shopkeep closing up shop 869 | -10/Mines | Learned location of Storage (-8) 876 | -10/Mines | Received a Rocket Launcher from a helpful Derelict 1157 | -10/Mines | Discovered new exit (range 8) 1187 | -10/Mines | Entered Materials 1187 | -9/Materials | Evolved 2 slots: Utility x2 1838 | -9/Materials | Destroyed 9 combat bots 1889 | -9/Materials | Discovered new exit (range 16) 1976 | -9/Materials | Identified exit to Materials 2090 | -9/Materials | Discovered new exit (range 7) 2368 | -9/Materials | Discovered exit to Materials (range 16) 2387 | -9/Materials | First assault squad dispatched 2530 | -9/Materials | Repaired Seismic Detector 2549 | -9/Materials | Identified exit to Mines 2551 | -9/Materials | Entered Mines 2622 | -9/Mines | Discovered exit to Materials (range 15) 2660 | -9/Mines | Discovered exit to Materials (range 9) 2746 | -9/Mines | Entered Materials 2746 | -8/Materials | Evolved 2 slots: Utility x2 2883 | -8/Materials | Lost 4 parts (1p1n1u1w) 3360 | -8/Materials | Build established: Infiltrator-Mutant 3609 | -8/Materials | Core integrity fell below 50% 3656 | -8/Materials | Core integrity fell below 20% 3671 | -8/Materials | Destroyed by X-57 Shotgunner with Shotgun Last Messages --------------- 03632_ U-05 Engineer builds a Wall. 03636_ K-01 Serf collects debris. 03644_ W-25 Informer sends out distress signal. 03646_ K-01 Serf destroyed. 03647_ Imp. Light Armor Plating destroyed. 03647_ Acquired 23 matter. 03649_ Carbon-fiber Leg destroyed. 03649_ Y-45 Defender destroyed. 03650_ Carbon-fiber Leg destroyed. 03650_ Adv. Assault Cannon destroyed. 03653_ Com. Wheel destroyed. 03657_ Imp. Heat Sink destroyed. 03660_ K-01 Serf collects debris. 03662_ Acquired Wheel. 03662_ Critical hit (Burn: +37). 03665_ Acquired Lgt. Ion Engine. 03665_ K-01 Serf destroyed. 03666_ Extracted 100 matter. 03668_ Heat Sink destroyed. 03669_ Acquired Lgt. Armor Plating. Map ----- +----------------------------------------------------+ | ?????????????????????????????????????????????????? | | ?????????????????????????????????????????????????? | | ?????????????????????????????????????????????????? | | ?????????????????????????????????????????????????? | | ?????????????????????????????????????????????????? | | ?????????????????????????????????????????????????? | | ?????????????????????????????????????????????????? | | ?????????????????????????????????????????????????? | | ?????????????????????????????????????????????????? | | ?????????????????????????????????????????????????? | | ?????????????????????????????????????????????????? | | ?????????????????????????????????????????????????? | | ?????????????????????????????????????????????????? | | ?????????????????????????????????????????????????? | | ?????????????????????????????????????????????????? | | ?????????????????????????????????????????????? #?? | | ????????????????????????""?????????#+#?????? ??? | | ????????????????????????""?????????# ###### ????? | | ??????????????????????""""?????????# ??????? | | ?????????????????????"""""?????????/ ????????? | | ?????????????????????""""" ????????# ??????????? | | ?????????????#????????"""" ????????# #???????????? | | ????????????## ???????? ????????# #???????????? | | ????????????# ###+############## ###?????????? | | ????????????# % t %%= % xu #?????????? | | ????????????+ %%%=!@ x #?????????? | | ????????????# Y != #?????????? | | ????????????# ###+################ # ??????? | | ????????????## ???# ??????????# # #####/###?? | | ?????????????????? ???????????# + | | ?????????????????## ????? ??##### #### ######## | | ??????????????????#?????? ?## # #### ### T ]# | | ????????????????????????? ?# # #### ### # | | ????????????????????????? ?# #+##### [# # | | ????????????????????????? ?# # ##### #^!! # | | ????????????????????????? ?# + =+!!! # | | ??????????????????????? # ####### = #!! # | | ???????????????????????##/## ##### # [!#% # | | ???????????????????????## ## ##########/## # | | ???????????????????????## ## ### = = # # | | ???????????????????????## ######### [[= [###### | | ????????????????####???## ##?????## [##???? | | ??????????????########### ######### "T" ! ###### | | ??????????????#### ######%#################+###### | | ??????????????## ##%% %% | | ??????????????## ##[######################## | | ????????????????? %%## ##= ################### | | ?????????????????"""""[## ##= ##???????????????## | | ?????????????? # """""=##=##=! ##???????????????## | | ?????????????? # """""%#[ [==!!##????????######### | +----------------------------------------------------+ Best States ------------- Heat Dissipation 59 Energy Generation 14 Energy Capacity 280 Matter Stores 300 Matter Capacity 300 Sight Range 16 Terrain Scan Density 10 ECM Strength 1 Armor Coverage 150 Evasion (%) 40 Recoil Reduction 2 Item Schematics ----------------- None Robot Schematics ------------------ None Fabricated ------------ Nothing Alien Tech Used ----------------- None Achievements -------------- None Challenges ------------ None Game ------ Seed LinearBarragePit Manual? 0 Play Time 00:28:29 Cumulative 198.4 hours Start 2024.05.20 @ 15:35:21 End 2024.05.20 @ 16:05:27 Sessions 1 Manual Loads 0 Difficulty Rogue Special Mode None Game No. 192 Rogue 187 Adventurer 5 Explorer 0 Win Type - Total 3 Types 2/0/0/1/0/0/0/0/0 Lore% 55 Gallery% 77 Achievement% 56 Wizard Run 0 Options --------- Layout 2 ASCII 0 Keyboard 0 Movement Mouse Keybinds 0 Fullscreen 1 Font 24/Terminus Map View 50x44 Zoom Use 0% Tactical HUD 1 Map Filters NONE Filters NONE Steam 1 RUN: 160dffcf-2235-4715-aa7e-f95fd7c12e75